[Event "FRA-ch Youth U20 2019"]
[Site "Hyeres"]
[Date "2019.04.14"]
[Round "1.1"]
[White "Laurent-Paoli, Pierre"]
[Black "Bremond, Abel"]
[Result "1-0"]
[ECO "A80"]
[WhiteElo "2352"]
[BlackElo "1847"]
[Annotator "NA"]
[PlyCount "47"]
[EventDate "2019.04.14"]
[EventType "swiss"]
[EventCountry "FRA"]
[SourceTitle "playchess.com"]
[Source "ChessBase"]
[SourceQuality "1"]
[TimeControl "5400+30"]

1. d4 {[%emt 0:00:00]} f5 {[%emt 0:00:00]} 2. Bg5 {[%emt 0:00:19]} h6 {[%emt 0:00:05]} 3. Bh4 {[%emt 0:00:05]} g5 {[%emt 0:00:20]} 4. e4 {[%emt 0:00:11]} Rh7 {[%emt 0:00:44]} 5. Qh5+ {[%emt 0:08:14]} Rf7 {[%emt 0:00:06]} 6. Bxg5 {[%emt 0:00:18]} hxg5 {[%emt 0:00:39]} 7. Nf3 {[%emt 0:00:04]} fxe4 {[%emt 0:06:43]} 8. Nxg5 {[%emt 0:06:52]} Nh6 {[%emt 0:01:24]} 9. Nc3 {[%emt 0:10:37]} e6 {[%emt 0:26:57]} 10. O-O-O {[%emt 0:11:32]} d5 {[%emt 0:10:02]} 11. f3 {[%emt 0:00:12]} e3 {[%emt 0:11:14]} 12. Bb5+ {[%emt 0:03:01]} Nc6 {[%emt 0:09:04]} 13. Rhe1 {[%emt 0:00:54]} Be7 {[%emt 0:08:08]} 14. f4 {[%emt 0:19:04]} Bxg5 {[%emt 0:06:21]} 15. fxg5 {[%emt 0:00:05]} Ng8 {[%emt 0:01:55]} 16. Rxe3 {[%emt 0:01:14]} Kf8 {[%emt 0:03:46]} 17. g6 {[%emt 0:08:11]} Rf5 {[%emt 0:00:47]} 18. g7+ {[%emt 0:00:05]} Kxg7 {[%emt 0:02:06]} 19. Rg3+ {[%emt 0:00:06]} Kf8 {[%emt 0:02:08]} 20. Qh8 {[%emt 0:00:09]} Ke7 {[%emt 0:04:08]} 21. Rxg8 {[%emt 0:00:56]} Rf8 {[%emt 0:00:54]} 22. Qg7+ {[%emt 0:01:18]} Rf7 {[%emt 0:00:48]} 23. Qg5+ {[%emt 0:00:08]} Kd7 {[%emt 0:02:32]} 24. Rxd8# {[%emt 0:00:07]} 1-0

[Event "FRA-ch Youth U20 2019"]
[Site "Hyeres"]
[Date "2019.04.14"]
[Round "1.2"]
[White "Junger, Quentin"]
[Black "Philippe, Guillaume"]
[Result "0-1"]
[ECO "A46"]
[WhiteElo "1770"]
[BlackElo "2352"]
[Annotator "NA"]
[PlyCount "78"]
[EventDate "2019.04.14"]
[EventType "swiss"]
[EventCountry "FRA"]
[SourceTitle "playchess.com"]
[Source "ChessBase"]
[SourceQuality "1"]
[TimeControl "5400+30"]

1. d4 {[%emt 0:00:00]} Nf6 {[%emt 0:00:00]} 2. Bg5 {[%emt 0:00:00]} e6 {[%emt 0:01:26]} 3. e4 {[%emt 0:00:08]} h6 {[%emt 0:00:24]} 4. Bxf6 {[%emt 0:00:37]} Qxf6 {[%emt 0:00:07]} 5. Nf3 {[%emt 0:01:09]} d6 {[%emt 0:02:40]} 6. Bd3 {[%emt 0:02:54]} g6 {[%emt 0:00:47]} 7. O-O {[%emt 0:04:48]} Bg7 {[%emt 0:00:22]} 8. Nc3 {[%emt 0:03:02]} O-O {[%emt 0:00:48]} 9. Qd2 {[%emt 0:03:39]} b6 {[%emt 0:12:23]} 10. e5 {[%emt 0:07:06]} Qd8 {[%emt 0:00:10]} 11. Ne2 {[%emt 0:06:07]} Bb7 {[%emt 0:00:38]} 12. exd6 {[%emt 0:04:41]} cxd6 {[%emt 0:01:11]} 13. Qf4 {[%emt 0:04:04]} Nc6 {[%emt 0:01:34]} 14. Rad1 {[%emt 0:05:19]} Nb4 {[%emt 0:04:24]} 15. a3 {[%emt 0:53:56]} Nxd3 {[%emt 0:00:15]} 16. Rxd3 {[%emt 0:00:00]} Rc8 {[%emt 0:00:15]} 17. c3 {[%emt 0:00:00]} Qc7 {[%emt 0:00:44]} 18. Ng3 {[%emt 0:00:00]} Ba6 {[%emt 0:00:09]} 19. c4 {[%emt 0:00:00]} Qxc4 {[%emt 0:03:57]} 20. Rc3 {[%emt 0:00:00]} Qd5 {[%emt 0:01:06]} 21. Rfc1 {[%emt 0:00:00]} e5 {[%emt 0:02:43]} 22. dxe5 {[%emt 0:00:00]} Rxc3 {[%emt 0:00:31]} 23. bxc3 {[%emt 0:00:00]} dxe5 {[%emt 0:00:15]} 24. Qa4 {[%emt 0:00:00]} Qc4 {[%emt 0:01:17]} 25. Qd7 {[%emt 0:00:00]} e4 {[%emt 0:03:47]} 26. Nd4 {[%emt 0:00:00]} Bc8 {[%emt 0:02:50]} 27. Qc6 {[%emt 0:00:00]} Qxc6 {[%emt 0:00:54]} 28. Nxc6 {[%emt 0:00:00]} Bd7 {[%emt 0:01:15]} 29. Ne7+ {[%emt 0:00:00]} Kh8 {[%emt 0:01:35]} 30. Nd5 {[%emt 0:00:00]} f5 {[%emt 0:01:31]} 31. Ne2 {[%emt 0:00:00]} Be6 {[%emt 0:01:37]} 32. Ne7 {[%emt 0:00:00]} Kh7 {[%emt 0:00:45]} 33. Nf4 {[%emt 0:00:00]} Bf7 {[%emt 0:00:11]} 34. Nc6 {[%emt 0:00:00]} a6 {[%emt 0:02:44]} 35. Nb4 {[%emt 0:00:00]} a5 {[%emt 0:00:40]} 36. Nc6 {[%emt 0:00:00]} Rc8 {[%emt 0:00:37]} 37. Ne7 {[%emt 0:00:00]} Rxc3 {[%emt 0:00:11]} 38. Rxc3 {[%emt 0:00:00]} Bxc3 {[%emt 0:00:07]} 39. Nc8 {[%emt 0:00:00]} b5 {[%emt 0:00:53]} 0-1

[Event "FRA-ch Youth U20 2019"]
[Site "Hyeres"]
[Date "2019.04.14"]
[Round "1.3"]
[White "Pigeat, Alexandre"]
[Black "Denizet, Briac"]
[Result "1-0"]
[ECO "A52"]
[WhiteElo "2347"]
[BlackElo "1767"]
[Annotator "NA"]
[PlyCount "55"]
[EventDate "2019.04.14"]
[EventType "swiss"]
[EventCountry "FRA"]
[SourceTitle "playchess.com"]
[Source "ChessBase"]
[SourceQuality "1"]
[TimeControl "5400+30"]

1. d4 {[%emt 0:00:00]} Nf6 {[%emt 0:00:00]} 2. c4 {[%emt 0:00:00]} e5 {[%emt 0:00:00]} 3. dxe5 {[%emt 0:02:54]} Ng4 {[%emt 0:02:30]} 4. Nf3 {[%emt 0:00:17]} Bc5 {[%emt 0:02:20]} 5. e3 {[%emt 0:00:39]} Nc6 {[%emt 0:00:14]} 6. a3 {[%emt 0:01:08]} Ngxe5 {[%emt 0:07:06]} 7. Nxe5 {[%emt 0:01:31]} Nxe5 {[%emt 0:00:16]} 8. Be2 {[%emt 0:01:21]} a5 {[%emt 0:04:15]} 9. O-O {[%emt 0:03:41]} O-O {[%emt 0:05:55]} 10. Nd2 {[%emt 0:01:08]} Ra6 {[%emt 0:06:26]} 11. Nb3 {[%emt 0:13:54]} Be7 {[%emt 0:03:11]} 12. f4 {[%emt 0:02:44]} Nc6 {[%emt 0:09:03]} 13. Bd3 {[%emt 0:01:03]} d6 {[%emt 0:03:12]} 14. Bd2 {[%emt 0:05:58]} Bf6 {[%emt 0:05:41]} 15. Rb1 {[%emt 0:01:33]} Re8 {[%emt 0:00:57]} 16. Qc2 {[%emt 0:03:48]} h6 {[%emt 0:00:22]} 17. Nc1 {[%emt 0:04:19]} Ne7 {[%emt 0:08:55]} 18. Ne2 {[%emt 0:02:15]} Bd7 {[%emt 0:01:32]} 19. Ng3 {[%emt 0:01:41]} g6 {[%emt 0:04:36]} 20. Ne4 {[%emt 0:12:37]} Nc8 {[%emt 0:08:13]} 21. Nxf6+ {[%emt 0:03:20]} Qxf6 {[%emt 0:00:03]} 22. Bc3 {[%emt 0:00:06]} Qe7 {[%emt 0:01:03]} 23. Bxg6 {[%emt 0:02:37]} Qxe3+ {[%emt 0:02:25]} 24. Kh1 {[%emt 0:00:06]} Qe2 {[%emt 0:02:48]} 25. Bxf7+ {[%emt 0:00:26]} Kf8 {[%emt 0:02:19]} 26. Qg6 {[%emt 0:00:18]} Qg4 {[%emt 0:00:38]} 27. Bg7+ {[%emt 0:00:08]} Ke7 {[%emt 0:00:11]} 28. Qf6# {[%emt 0:00:05]} 1-0

[Event "FRA-ch Youth U20 2019"]
[Site "Hyeres"]
[Date "2019.04.14"]
[Round "1.4"]
[White "Creff, Mathis"]
[Black "Eugene, Floryan"]
[Result "0-1"]
[ECO "C44"]
[WhiteElo "1752"]
[BlackElo "2294"]
[Annotator "NA"]
[PlyCount "42"]
[EventDate "2019.04.14"]
[EventType "swiss"]
[EventCountry "FRA"]
[SourceTitle "playchess.com"]
[Source "ChessBase"]
[SourceQuality "1"]
[TimeControl "5400+30"]

1. e4 {[%emt 0:00:00]} e5 {[%emt 0:00:00]} 2. Nf3 {[%emt 0:00:00]} Nc6 {[%emt 0:00:00]} 3. d4 {[%emt 0:00:00]} exd4 {[%emt 0:00:04]} 4. c3 {[%emt 0:00:05]} d5 {[%emt 0:06:54]} 5. exd5 {[%emt 0:00:08]} Qxd5 {[%emt 0:00:08]} 6. cxd4 {[%emt 0:00:09]} Nf6 {[%emt 0:07:41]} 7. Nc3 {[%emt 0:00:45]} Bb4 {[%emt 0:00:25]} 8. a3 {[%emt 0:04:37]} Bxc3+ {[%emt 0:01:03]} 9. bxc3 {[%emt 0:00:09]} O-O {[%emt 0:02:13]} 10. Be2 {[%emt 0:04:47]} Ne4 {[%emt 0:07:39]} 11. Qc2 {[%emt 0:03:53]} Re8 {[%emt 0:06:48]} 12. O-O {[%emt 0:13:27]} Nxc3 {[%emt 0:02:26]} 13. Bd3 {[%emt 0:01:50]} Ne4 {[%emt 0:01:07]} 14. Rb1 {[%emt 0:05:01]} a6 {[%emt 0:19:23]} 15. Re1 {[%emt 0:19:03]} Bf5 {[%emt 0:00:52]} 16. Be3 {[%emt 0:20:06]} Nd6 {[%emt 0:02:13]} 17. Bxf5 {[%emt 0:09:44]} Nxf5 {[%emt 0:00:08]} 18. Rxb7 {[%emt 0:00:33]} Ncxd4 {[%emt 0:00:42]} 19. Qxc7 {[%emt 0:00:39]} Nxf3+ {[%emt 0:00:38]} 20. gxf3 {[%emt 0:00:10]} Nh4 {[%emt 0:00:18]} 21. Rc1 {[%emt 0:02:30]} Qxf3 {[%emt 0:02:53]} 0-1

[Event "FRA-ch Youth U20 2019"]
[Site "Hyeres"]
[Date "2019.04.15"]
[Round "2.4"]
[White "Eugene, Floryan"]
[Black "Gits, Alexis"]
[Result "1-0"]
[ECO "C55"]
[WhiteElo "2294"]
[BlackElo "1945"]
[Annotator "RC"]
[PlyCount "80"]
[EventDate "2019.04.14"]
[EventType "swiss"]
[EventCountry "FRA"]
[SourceTitle "playchess.com"]
[Source "ChessBase"]
[SourceQuality "1"]
[TimeControl "5400+30"]

1. e4 {[%emt 0:00:00]} e5 {[%emt 0:00:03]} 2. Nf3 {[%emt 0:00:00]} d6 {[%emt 0:00:15]} 3. Bc4 {[%emt 0:01:33]} Be7 {[%emt 0:00:13]} 4. O-O {[%emt 0:02:07]} Nf6 {[%emt 0:00:22]} 5. d3 {[%emt 0:05:19]} Nc6 {[%emt 0:06:20]} 6. a4 {[%emt 0:00:12]} O-O {[%emt 0:02:10]} 7. c3 {[%emt 0:06:56]} Bg4 {[%emt 0:19:42]} 8. h3 {[%emt 0:00:46]} Bh5 {[%emt 0:00:50]} 9. Nbd2 {[%emt 0:01:09]} Qd7 {[%emt 0:00:53]} 10. Re1 {[%emt 0:05:08]} Bg6 {[%emt 0:20:38]} 11. Nf1 {[%emt 0:03:04]} Rfe8 {[%emt 0:06:57]} 12. Ng3 {[%emt 0:01:58]} Bf8 {[%emt 0:37:37]} 13. Nh4 {[%emt 0:08:28]} d5 {[%emt 0:00:00]} 14. exd5 Nxd5 {[%emt 0:00:00]} 15. Nxg6 hxg6 16. a5 {[%emt 0:05:53]} Nf4 17. Qf3 {[%emt 0:06:37]} g5 18. Ne4 {[%emt 0:49:50]} Qf5 {[%emt 0:00:00]} 19. a6 {[%emt 0:00:00]} Nd8 {[%emt 0:00:00]} 20. Nxg5 {[%emt 0:00:00]} Qxg5 {[%emt 0:00:00]} 21. Bxf4 {[%emt 0:00:00]} Qf6 22. d4 {[%emt 0:02:00]} Rb8 {[%emt 0:05:00]} 23. Bxe5 {[%emt 0:00:30]} Qxf3 {[%emt 0:00:00]} 24. gxf3 {[%emt 0:00:00]} bxa6 25. b4 {[%emt 0:00:00]} Nc6 26. Rxa6 {[%emt 0:01:30]} Nxe5 {[%emt 0:00:00]} 27. dxe5 {[%emt 0:00:00]} c5 28. Rxa7 {[%emt 0:01:00]} Re7 {[%emt 0:00:00]} 29. Rxe7 {[%emt 0:00:00]} Bxe7 {[%emt 0:00:00]} 30. b5 {[%emt 0:00:00]} Kf8 {[%emt 0:00:00]} 31. Ra1 {[%emt 0:00:00]} f6 {[%emt 0:00:00]} 32. f4 {[%emt 0:00:00]} g5 {[%emt 0:01:05]} 33. Ra7 {[%emt 0:00:00]} gxf4 {[%emt 0:00:44]} 34. exf6 {[%emt 0:00:00]} Bd6 {[%emt 0:00:07]} 35. Rg7 {[%emt 0:00:00]} Ke8 36. Bd5 {[%emt 0:04:00]} Bf8 {[%emt 0:05:04]} 37. Bc6+ {[%emt 0:00:00]} Kd8 {[%emt 0:00:00]} 38. Rd7+ {[%emt 0:00:00]} Kc8 {[%emt 0:00:00]} 39. Rf7 {[%emt 0:00:00]} Bd6 {[%emt 0:00:00]} 40. c4 {[%emt 0:00:00]} Be5 {[%emt 0:00:00]} 1-0

[Event "FRA-ch Youth U20 2019"]
[Site "Hyeres"]
[Date "2019.04.15"]
[Round "3.1"]
[White "Guerlach, Keigo"]
[Black "Philippe, Guillaume"]
[Result "1/2-1/2"]
[ECO "A31"]
[WhiteElo "2071"]
[BlackElo "2352"]
[Annotator "NA"]
[PlyCount "50"]
[EventDate "2019.04.14"]
[EventType "swiss"]
[EventCountry "FRA"]
[SourceTitle "playchess.com"]
[Source "ChessBase"]
[SourceQuality "1"]
[TimeControl "5400+30"]

1. c4 {[%emt 0:06:16]} Nf6 {[%emt 0:25:11]} 2. Nc3 {[%emt 0:00:30]} e6 {[%emt 0:00:30]} 3. e4 {[%emt 0:00:30]} c5 {[%emt 0:00:30]} 4. Nf3 {[%emt 0:00:30]} d6 {[%emt 0:00:30]} 5. d4 {[%emt 0:00:30]} cxd4 {[%emt 0:00:30]} 6. Nxd4 {[%emt 0:00:30]} a6 {[%emt 0:00:30]} 7. Be2 {[%emt 0:00:30]} b6 {[%emt 0:00:30]} 8. O-O {[%emt 0:00:30]} Bb7 {[%emt 0:00:30]} 9. f3 {[%emt 0:00:30]} Be7 {[%emt 0:00:30]} 10. Be3 {[%emt 0:00:30]} O-O {[%emt 0:00:30]} 11. Qd2 {[%emt 0:00:30]} Nbd7 {[%emt 0:00:30]} 12. Rfd1 {[%emt 0:00:30]} Qc7 {[%emt 0:00:30]} 13. Rac1 {[%emt 0:00:30]} Rac8 {[%emt 0:00:30]} 14. b3 {[%emt 0:00:30]} Rfe8 {[%emt 0:00:30]} 15. Nc2 {[%emt 0:00:30]} b5 {[%emt 0:00:30]} 16. Bf4 {[%emt 0:00:30]} bxc4 $11 {[%emt 0:00:30]} 17. Bxc4 {[%emt 0:00:30]} Ne5 {[%emt 0:00:30]} 18. Ne3 {[%emt 0:00:30]} Red8 {[%emt 0:00:30]} 19. Na4 {[%emt 0:00:30]} Qb8 {[%emt 0:00:30]} 20. Kh1 {[%emt 0:00:30]} Qa7 {[%emt 0:00:30]} 21. Qa5 {[%emt 0:00:30]} Nfd7 {[%emt 0:00:30]} 22. Nf1 {[%emt 0:00:30]} Nc6 {[%emt 0:00:30]} 23. Qe1 {[%emt 0:00:30]} Nce5 {[%emt 0:00:30]} 24. Qa5 {[%emt 0:00:30]} Qf2 {[%emt 0:00:30]} 25. Bg3 {[%emt 0:00:30]} Qa7 {[%emt 0:00:30]} 1/2-1/2

[Event "FRA-ch Youth U20 2019"]
[Site "Hyeres"]
[Date "2019.04.15"]
[Round "3.2"]
[White "Pigeat, Alexandre"]
[Black "Pillard, Valentin"]
[Result "1-0"]
[ECO "E46"]
[WhiteElo "2347"]
[BlackElo "2093"]
[Annotator "NA"]
[PlyCount "86"]
[EventDate "2019.04.14"]
[EventType "swiss"]
[EventCountry "FRA"]
[SourceTitle "playchess.com"]
[Source "ChessBase"]
[SourceQuality "1"]
[TimeControl "5400+30"]

1. d4 {[%emt 0:00:00]} Nf6 {[%emt 0:02:44]} 2. c4 {[%emt 0:00:44]} e6 {[%emt 0:00:10]} 3. Nc3 {[%emt 0:00:10]} Bb4 {[%emt 0:00:07]} 4. e3 {[%emt 0:00:11]} O-O {[%emt 0:00:11]} 5. Nge2 {[%emt 0:00:17]} c6 {[%emt 0:02:17]} (5... Re8 6. a3 Bf8 7. d5 d6 8. g3 exd5 9. cxd5 c5 10. Bg2 Nbd7 11. O-O c4 12. Nd4 Nc5 13. Qe2 Nd3 14. b3 Nxc1 15. Rfxc1 cxb3 {½-½ (74) Caruana,F (2822)-So,W (2780) Saint Louis 2018}) 6. a3 {[%emt 0:00:49] E46: Nimzo-Indian: Rubinstein: 4 e3 0-0 5 Ne2 without early Bd3} Ba5 {[%emt 0:00:06]} 7. Qc2 {[%emt 0:02:53]} d6 {[%emt 0:04:49]} 8. Ng3 $146 {[%emt 0:02:40]} ({Predecessor:} 8. g3 e5 9. Bg2 Re8 10. O-O Nbd7 11. b3 Nf8 12. dxe5 dxe5 13. Bb2 {0-1 (39) Mihajlov,S (2257)-Csonka,A (2339) Bilbao 2014}) 8... e5 {[%emt 0:02:32]} 9. dxe5 {[%emt 0:02:49]} dxe5 {[%emt 0:00:40]} 10. Bd3 {[%emt 0:00:41]} Na6 {[%emt 0:04:15]} 11. b4 {[%emt 0:00:36] [#]} Bxb4 $1 {[%emt 0:00:34]} 12. O-O {[%emt 0:00:28]} Be7 {[%emt 0:09:23]} 13. Qe2 {[%emt 0:06:24]} (13. Na4 $142) 13... Nc5 {[%emt 0:05:58]} 14. Bc2 {[%emt 0:00:11]} g6 {[%emt 0:03:36]} 15. Bb2 {[%emt 0:01:21]} Bg4 {[%emt 0:00:54]} 16. f3 {[%emt 0:00:21]} Be6 {[%emt 0:00:08]} 17. f4 {[%emt 0:06:34]} Bg4 {[%emt 0:09:39]} (17... Qb6 $19 {and Black stays clearly on top.} 18. fxe5 Qxb2 19. exf6 Qxc3 20. fxe7 Rfe8) 18. Qf2 {[%emt 0:02:47]} exf4 {[%emt 0:01:28]} ({Black should try} 18... Bc8 $17 19. h3 Qb6) 19. Qxf4 {[%emt 0:00:43]} Ne6 {[%emt 0:18:40]} 20. Qf2 {[%emt 0:08:39]} Ng7 {[%emt 0:03:17]} 21. h3 {[%emt 0:02:26] [#]} Be6 $17 {[%emt 0:00:11]} 22. Nce2 {[%emt 0:11:00]} Nfh5 {[%emt 0:04:00]} 23. Nxh5 {[%emt 0:10:59]} Nxh5 {[%emt 0:00:17]} 24. Nd4 {[%emt 0:03:00]} Ng7 {[%emt 0:05:34]} 25. Rad1 {[%emt 0:04:21]} Qb6 {[%emt 0:02:55]} 26. Bc3 {[%emt 0:02:55]} Bxc4 {[%emt 0:01:51]} 27. Rfe1 {[%emt 0:05:11]} Rad8 {[%emt 0:02:33]} 28. Qf4 {[%emt 0:00:41]} Rd5 {[%emt 0:01:43]} 29. Nf3 {[%emt 0:03:37]} Rxd1 {[%emt 0:02:26]} 30. Rxd1 {[%emt 0:00:05]} Be6 {[%emt 0:01:38]} 31. Bd4 {[%emt 0:00:49]} Qa5 {[%emt 0:01:28]} 32. Rb1 {[%emt 0:04:34]} Nf5 {[%emt 0:05:49]} 33. Rxb7 {[%emt 0:05:34]} Bd6 {[%emt 0:01:30]} 34. Qg5 {[%emt 0:01:01]} h6 {[%emt 0:01:26]} 35. Qf6 {[%emt 0:00:43]} Nxd4 {[%emt 0:00:09]} 36. exd4 {[%emt 0:03:32]} Qa6 {[%emt 0:01:49]} 37. Rb1 {[%emt 0:02:01]} Qc8 {[%emt 0:00:59]} 38. Re1 {[%emt 0:02:20]} Bg3 {[%emt 0:00:35]} 39. Re3 {[%emt 0:01:30]} Bf5 {[%emt 0:00:19]} 40. Bb3 {[%emt 0:00:27]} Qd8 {[%emt 0:00:47]} 41. Bxf7+ {[%emt 0:00:09]} Kh7 {[%emt 0:00:00]} 42. Re7 {[%emt 0:00:18]} Qxe7 {[%emt 0:00:59]} 43. Qxe7 {[%emt 0:00:07]} Bd6 {[%emt 0:00:31]} 1-0

[Event "FRA-ch Youth U20 2019"]
[Site "Hyeres"]
[Date "2019.04.15"]
[Round "3.3"]
[White "Galaud, Vincent"]
[Black "Eugene, Floryan"]
[Result "0-1"]
[ECO "C47"]
[WhiteElo "2035"]
[BlackElo "2294"]
[Annotator "NA"]
[PlyCount "100"]
[EventDate "2019.04.14"]
[EventType "swiss"]
[EventCountry "FRA"]
[SourceTitle "playchess.com"]
[Source "ChessBase"]
[SourceQuality "1"]
[TimeControl "5400+30"]

1. e4 {[%emt 0:00:00]} e5 {[%emt 0:01:17]} 2. Nf3 {[%emt 0:00:00]} Nc6 {[%emt 0:00:06]} 3. Nc3 {[%emt 0:00:00]} Nf6 {[%emt 0:00:11]} 4. d4 {[%emt 0:00:00]} exd4 {[%emt 0:00:06]} 5. Nxd4 {[%emt 0:00:00]} Bb4 {[%emt 0:01:13]} 6. Nxc6 {[%emt 0:00:07]} bxc6 {[%emt 0:00:03]} 7. Bd3 {[%emt 0:00:09]} d5 {[%emt 0:00:18]} 8. exd5 {[%emt 0:00:07]} cxd5 {[%emt 0:04:29]} 9. O-O {[%emt 0:00:10]} O-O {[%emt 0:00:02]} 10. Bg5 {[%emt 0:00:08]} c6 {[%emt 0:00:08]} 11. Qf3 {[%emt 0:00:04]} Bd6 {[%emt 0:08:22]} 12. h3 {[%emt 0:07:31]} Re8 {[%emt 0:04:14] C47: Scotch Four Knights and Four Knights with 4 g3} (12... h6 13. Bf4 Rb8 14. b3 Rb4 15. Bxd6 Qxd6 16. Rfe1 a5 17. Rad1 Bd7 18. Qe3 Rc8 19. Qa7 Rh4 20. Re3 Qc7 21. Qxc7 Rxc7 {½-½ (57) Carlsen,M (2839)-Ding,L (2804) Porto Carras 2018}) 13. Ne2 {[%emt 0:02:04]} Be5 {[%emt 0:02:15]} 14. c3 {[%emt 0:01:22]} h6 {[%emt 0:01:42]} 15. Bf4 $146 {[%emt 0:11:46]} ({Predecessor:} 15. Be3 Bd7 16. Ng3 Rb8 17. Rab1 Qc7 18. Rfe1 c5 19. Bd2 Bc6 20. Rxe5 Rxe5 {0-1 (46) Casas Douton,D-Fernandez Garcia,J (2475) Ponferrada 1992}) 15... Qd6 {[%emt 0:04:56]} 16. Rfe1 {[%emt 0:04:23]} Bd7 {[%emt 0:02:06]} 17. Rad1 {[%emt 0:02:43]} Rab8 {[%emt 0:06:26]} 18. b3 {[%emt 0:01:53]} c5 {[%emt 0:06:58]} 19. Bxe5 {[%emt 0:05:50]} Rxe5 {[%emt 0:00:18]} 20. Ng3 {[%emt 0:01:46]} Rbe8 {[%emt 0:00:19]} 21. Rxe5 {[%emt 0:01:56]} Rxe5 {[%emt 0:00:21]} 22. Bf5 {[%emt 0:07:38]} Bc6 {[%emt 0:01:02]} 23. Qd3 {[%emt 0:04:08]} Qe7 {[%emt 0:08:41]} 24. Qa6 {[%emt 0:06:51]} Be8 $11 {[%emt 0:01:09]} 25. Kh2 {[%emt 0:05:22]} g6 {[%emt 0:00:59]} 26. Bc8 {[%emt 0:05:37]} h5 {[%emt 0:01:31]} 27. Bb7 {[%emt 0:06:31]} h4 {[%emt 0:01:52]} 28. Nf1 {[%emt 0:00:26]} Re6 {[%emt 0:00:02]} 29. Qxa7 {[%emt 0:01:16]} Qc7+ {[%emt 0:00:02]} 30. Kg1 {[%emt 0:00:13]} Rb6 {[%emt 0:00:02]} 31. Ne3 {[%emt 0:05:30]} Qxb7 {[%emt 0:03:48]} 32. Qxb7 {[%emt 0:01:06]} Rxb7 {[%emt 0:00:02]} 33. Nxd5 {[%emt 0:00:17]} Nxd5 {[%emt 0:00:31]} 34. Rxd5 {[%emt 0:00:08]} Rc7 {[%emt 0:00:04]} 35. Re5 {[%emt 0:01:17]} Bd7 {[%emt 0:00:38]} 36. Re4 {[%emt 0:00:44]} Ra7 {[%emt 0:02:54]} 37. Rxh4 {[%emt 0:01:05]} Be6 {[%emt 0:00:36]} 38. Re4 {[%emt 0:01:09]} Rxa2 {[%emt 0:00:17]} 39. Re5 {[%emt 0:00:11]} Ra5 {[%emt 0:00:12]} 40. c4 {[%emt 0:02:10]} Kg7 {[%emt 0:00:50]} 41. Kh2 {[%emt 0:01:07]} Kf6 {[%emt 0:00:08]} 42. f4 {[%emt 0:00:37]} Ra3 {[%emt 0:00:09]} 43. Rxc5 {[%emt 0:00:34]} Rxb3 {[%emt 0:00:02]} 44. Ra5 {[%emt 0:07:58]} Bxc4 {[%emt 0:00:38]} 45. Ra4 {[%emt 0:01:09]} Bb5 {[%emt 0:01:44]} 46. Ra2 {[%emt 0:00:11]} Kf5 {[%emt 0:00:23]} 47. Rf2 {[%emt 0:00:08]} Re3 {[%emt 0:00:22]} 48. Rb2 {[%emt 0:03:03]} Bc4 {[%emt 0:00:31]} 49. Rf2 {[%emt 0:00:07]} Re2 {[%emt 0:00:40]} 50. Rf3 {[%emt 0:01:40]} Bd5 {[%emt 0:00:11]} 0-1

[Event "FRA-ch Youth U20 2019"]
[Site "Hyeres"]
[Date "2019.04.15"]
[Round "3.4"]
[White "Roque, Gaetan"]
[Black "Roussel, Simon"]
[Result "1-0"]
[ECO "E15"]
[WhiteElo "2029"]
[BlackElo "2126"]
[Annotator "NA"]
[PlyCount "103"]
[EventDate "2019.04.14"]
[EventType "swiss"]
[EventCountry "FRA"]
[SourceTitle "playchess.com"]
[Source "ChessBase"]
[SourceQuality "1"]
[TimeControl "5400+30"]

1. d4 {[%emt 0:07:35]} Nf6 {[%emt 0:00:00]} 2. c4 {[%emt 0:00:05]} e6 {[%emt 0:00:00]} 3. Nf3 {[%emt 0:00:12]} b6 {[%emt 0:00:14]} 4. g3 {[%emt 0:00:11]} Ba6 {[%emt 0:02:39]} 5. Qc2 {[%emt 0:00:31]} d5 {[%emt 0:01:50]} 6. Ne5 {[%emt 0:11:54]} dxc4 {[%emt 0:06:56]} 7. Bg2 {[%emt 0:02:03]} Nd5 {[%emt 0:01:08]} 8. Nc3 {[%emt 0:14:20]} c6 {[%emt 0:05:34]} 9. Ne4 $17 {[%emt 0:06:22]} (9. O-O $11 {remains equal.}) 9... Nb4 {[%emt 0:08:34]} 10. Qb1 {[%emt 0:08:52]} Be7 {[%emt 0:09:15]} 11. a3 {[%emt 0:02:59]} Nd5 {[%emt 0:02:36]} 12. Qc2 {[%emt 0:01:02]} b5 {[%emt 0:02:31]} 13. Bd2 {[%emt 0:04:11]} Bb7 {[%emt 0:02:52]} 14. h4 {[%emt 0:02:09]} Nd7 {[%emt 0:03:14]} 15. Bg5 {[%emt 0:08:11]} N7f6 {[%emt 0:09:51]} 16. O-O {[%emt 0:04:18]} Nxe4 {[%emt 0:07:52]} 17. Bxe7 {[%emt 0:00:07]} Qxe7 {[%emt 0:00:41]} 18. Bxe4 {[%emt 0:01:46]} f6 {[%emt 0:04:12]} 19. Nf3 {[%emt 0:12:39]} f5 {[%emt 0:03:30]} 20. Bxd5 {[%emt 0:00:06]} cxd5 {[%emt 0:00:01]} 21. Qd2 {[%emt 0:00:51]} a5 {[%emt 0:05:08]} 22. Ne5 {[%emt 0:03:04]} O-O {[%emt 0:05:59]} 23. Qg5 {[%emt 0:01:10]} Qxg5 {[%emt 0:03:32]} 24. hxg5 {[%emt 0:00:02]} Bc8 {[%emt 0:08:39]} 25. Kg2 {[%emt 0:00:22]} Ra7 {[%emt 0:00:46]} 26. Rh1 {[%emt 0:00:43]} Bd7 {[%emt 0:02:29]} 27. Rh2 {[%emt 0:01:11]} Be8 {[%emt 0:00:44]} 28. Rah1 {[%emt 0:00:54]} g6 {[%emt 0:00:14]} 29. f4 {[%emt 0:03:00]} Rc7 {[%emt 0:00:22]} 30. Rc1 {[%emt 0:00:49]} Kg7 {[%emt 0:00:21]} 31. Kf3 {[%emt 0:00:51]} Rh8 {[%emt 0:01:50]} 32. Rh6 {[%emt 0:00:04]} b4 {[%emt 0:00:34]} 33. axb4 {[%emt 0:00:23]} axb4 {[%emt 0:00:02]} 34. b3 {[%emt 0:01:04]} c3 {[%emt 0:01:05]} 35. Nd3 {[%emt 0:00:30]} Rb7 {[%emt 0:00:24]} 36. Nc5 {[%emt 0:00:21]} Rb6 {[%emt 0:00:38]} 37. Ra1 {[%emt 0:00:01]} Bf7 {[%emt 0:00:50]} 38. Ra7 {[%emt 0:02:31]} Rhb8 {[%emt 0:01:03]} 39. Rh1 {[%emt 0:00:19]} Rc8 {[%emt 0:00:29]} 40. Ke3 {[%emt 0:00:21]} Rbc6 {[%emt 0:00:21]} 41. Rha1 {[%emt 0:00:35]} Kg8 {[%emt 0:00:44]} 42. Rb7 {[%emt 0:00:15]} Rxc5 {[%emt 0:00:35]} 43. dxc5 {[%emt 0:00:06]} Rxc5 {[%emt 0:00:01]} 44. Rxb4 {[%emt 0:01:01]} c2 {[%emt 0:00:31]} 45. Rc1 {[%emt 0:00:09]} Rc3+ {[%emt 0:00:40]} 46. Kd2 {[%emt 0:00:02]} Rxg3 {[%emt 0:00:12]} 47. Rxc2 {[%emt 0:00:01]} h5 {[%emt 0:01:00]} 48. Rc8+ {[%emt 0:00:06]} Kg7 {[%emt 0:00:05]} 49. Rc7 {[%emt 0:00:03]} h4 {[%emt 0:01:42]} 50. Rbb7 h3 {[%emt 0:00:00]} 51. Rxf7+ {[%emt 0:00:07]} Kg8 {[%emt 0:00:00]} 52. Rfc7 {[%emt 0:00:04]} 1-0